fUSD/lending_fUSD_20240216
["ID","MTS","AMOUNT","RATE_DAILY","PERIOD"]
[314247703,1708119065840,-505.42,0.00049315,60]
[314247704,1708119065850,-3301.31,0.00049315,60]
[314247705,1708119065859,-626.52,0.00049315,60]
[314247706,1708119065868,-500.0,0.00049315,60]
[314247707,1708119065878,-500.0,0.00049315,60]
[314247708,1708119065887,-500.0,0.00049315,60]
[314247709,1708119065897,-500.0,0.00049315,60]
[314247710,1708119065910,-1972.92,0.00049315,60]
[314247711,1708119065920,-500.0,0.00049315,60]
[314247712,1708119065931,-500.0,0.00049315,60]
[314247713,1708119065941,-500.0,0.00049315,60]
[314247714,1708119065951,-914.46,0.00049315,60]
[314247715,1708119065961,-9721.08592141,0.00049315,60]
[314247716,1708119065971,-991.91,0.00049315,60]
[314247717,1708119065981,-500.0,0.00049315,60]
[314247718,1708119065997,-500.0,0.00049315,60]
[314247719,1708119066008,-500.0,0.00049315,60]
[314247720,1708119066018,-536.93,0.00049315,60]
[314247721,1708119066028,-500.0,0.00049315,60]
[314247722,1708119066038,-500.0,0.00049315,60]
[314247723,1708119066047,-500.0,0.00049315,60]
[314247724,1708119066057,-360.91016378,0.00049315,60]
[314247725,1708119066067,-500.0,0.00049315,60]
[314247726,1708119066076,-500.0,0.00049315,60]
[314247727,1708119066086,-6496.83,0.00049315,60]
[314247728,1708119066095,-500.0,0.00049315,60]
[314247729,1708119066104,-500.0,0.00049315,2]
[314247730,1708119066113,-500.0,0.00049315,60]
[314247731,1708119066123,-500.0,0.00049315,60]
[314247732,1708119066132,-1103.19,0.00049315,60]
[314247733,1708119066146,-500.0,0.00049315,60]
[314247734,1708119066156,-3577.78,0.00049315,5]
[314247735,1708119066165,-800.0,0.00049315,30]
[314247736,1708119066175,-800.0,0.00049315,30]
[314247737,1708119066187,-150.0,0.00049321,7]
[314247738,1708119066198,-150.0,0.00049324,7]
[314247739,1708119066207,-150.0,0.00049332,7]
[314247740,1708119066217,-150.0,0.00049345,7]
[314247741,1708119066227,-1229.65121151,0.00049359,5]
[314247742,1708119066236,-150.0,0.0004936,7]
[314247743,1708119066246,-150.0,0.00049367,7]
[314247744,1708119066256,-150.0,0.00049369,7]
[314247745,1708119066265,-300.0,0.00049389,7]
[314247746,1708119066276,-151.021799,0.00049398,44]
[314247747,1708119066285,-150.0,0.00049398,7]
[314247748,1708119066294,-1260.7,0.0004941,2]
[314247749,1708119066308,-150.0,0.00049426,7]
[314247750,1708119066317,-150.0,0.00049433,7]
[314247751,1708119066327,-49466.87320075,0.00049451,30]
[314247752,1708119066336,-150.0,0.00049452,7]
[314247753,1708119066346,-150.0,0.00049477,7]
[314247754,1708119066356,-150.0,0.0004948,2]
[314247755,1708119066365,-177.0556127,0.0004948,30]
[314247756,1708119066375,-150.0,0.00049484,7]
[314247757,1708119066385,-150.0,0.00049486,7]
[314247758,1708119066394,-186.47212307,0.00049489,120]
[314247759,1708119066404,-151.021799,0.00049498,44]
[314247760,1708119066413,-1500.0,0.00049499,7]
[314247761,1708119066423,-22557.01465687,0.000495,5]
[314247762,1708119066435,-3400.0,0.000495,30]
[314247763,1708119066444,-2562.58,0.000495,6]
[314247764,1708119066454,-1327.623976,0.000495,23]
[314247765,1708119066463,-150.0,0.00049518,7]
[314247766,1708119066473,-1000.0,0.0004952,23]
[314247767,1708119066482,-6193.2113949,0.00049521,2]
[314247768,1708119066492,-32419.1522104,0.00049521,2]
[314247769,1708119066502,-6357.8389413,0.00049521,2]
[314247770,1708119066511,-174.3603381,0.00049521,2]
[314247771,1708119066520,-150.0,0.00049526,7]
[314247772,1708119066530,-1500.0,0.0004953,7]
[314247773,1708119066540,-150.0,0.00049537,7]
[314247774,1708119066550,-1000.0,0.0004954,23]
[314247775,1708119066560,-150.0,0.00049547,7]
[314247776,1708119066571,-1500.0,0.0004955,7]
[314247777,1708119066580,-779.71846887,0.00049555,30]
[314247778,1708119066589,-13634.6924886,0.00049555,2]
[314247779,1708119066598,-236081.8033006,0.00049555,2]
[314247780,1708119066607,-184466.3129029,0.00049555,2]
[314247781,1708119066616,-224.913742,0.00049555,2]
[314247782,1708119066626,-224.913742,0.00049555,2]
[314247783,1708119066635,-1000.0,0.0004956,23]
[314247784,1708119066644,-592.89,0.00049564,120]
[314247785,1708119066654,-150.0,0.00049568,7]
[314247786,1708119066663,-150.0,0.00049573,7]
[314247787,1708119066673,-1500.0,0.00049576,7]
[314247788,1708119066684,-150.0,0.00049577,7]
[314247789,1708119066693,-150.0,0.00049579,7]
[314247790,1708119066703,-1000.0,0.0004958,23]
[314247791,1708119066712,-150.0,0.00049581,7]
[314247792,1708119066721,-150.0,0.00049586,7]
[314247793,1708119066731,-8009.08731144,0.00049589,2]
[314247794,1708119066740,-290.0,0.00049589,30]
[314247795,1708119066749,-500.0,0.00049589,60]
[314247796,1708119066759,-500.0,0.00049589,60]
[314247797,1708119066769,-500.0,0.00049589,60]
[314247798,1708119066778,-500.0,0.00049589,60]
[314247799,1708119066787,-500.0,0.00049589,60]
[314247800,1708119066796,-500.0,0.00049589,60]
[314247801,1708119066805,-500.0,0.00049589,60]
[314247802,1708119066815,-500.0,0.00049589,60]
[314247803,1708119066828,-500.0,0.00049589,60]
[314247804,1708119066838,-500.0,0.00049589,60]
[314247805,1708119066855,-572.64370916,0.00049589,60]
[314247806,1708119066867,-500.0,0.00049589,60]
[314247807,1708119066877,-500.0,0.00049589,60]
[314247808,1708119066886,-500.0,0.00049589,60]
[314247809,1708119066895,-500.0,0.00049589,60]
[314247810,1708119066904,-500.0,0.00049589,60]
[314247811,1708119066918,-500.0,0.00049589,60]
[314247812,1708119066929,-500.0,0.00049589,60]
[314247813,1708119066938,-500.0,0.00049589,60]
[314247814,1708119066949,-500.0,0.00049589,60]
[314247815,1708119066959,-500.0,0.00049589,60]
[314247816,1708119066970,-500.0,0.00049589,60]
[314247817,1708119066981,-500.0,0.00049589,60]
[314247818,1708119066991,-500.0,0.00049589,60]
[314247819,1708119067003,-500.0,0.00049589,60]
[314247820,1708119067013,-500.0,0.00049589,60]
[314247821,1708119067023,-500.0,0.00049589,60]
[314247822,1708119067033,-500.0,0.00049589,60]
[314247823,1708119067043,-500.0,0.00049589,60]
[314247824,1708119067053,-567.56848133,0.00049589,60]
[314247825,1708119067063,-500.0,0.00049589,60]
[314247826,1708119067073,-500.0,0.00049589,60]
[314247827,1708119067084,-500.0,0.00049589,60]
[314247828,1708119067093,-500.0,0.00049589,60]
[314247829,1708119067103,-500.0,0.00049589,60]
[314247830,1708119067114,-500.0,0.00049589,60]
[314247831,1708119067124,-461.88205124,0.00049589,60]
[314247832,1708119067135,-500.0,0.00049589,60]
[314247833,1708119067145,-500.0,0.00049589,60]
[314247834,1708119067155,-500.0,0.00049589,60]
[314247835,1708119067167,-500.0,0.00049589,60]
[314247836,1708119067178,-500.0,0.00049589,60]
[314247837,1708119067189,-534.27310267,0.00049589,60]
[314247838,1708119067200,-500.0,0.00049589,60]
[314247839,1708119067211,-500.0,0.00049589,60]
[314247840,1708119067221,-500.0,0.00049589,60]
[314247841,1708119067231,-500.0,0.00049589,60]
[314247842,1708119067241,-500.0,0.00049589,60]
[314247843,1708119067252,-500.0,0.00049589,60]
[314247844,1708119067262,-500.0,0.00049589,60]
[314247845,1708119067273,-500.0,0.00049589,60]
[314247846,1708119067283,-500.0,0.00049589,60]
[314247847,1708119067293,-500.0,0.00049589,60]
[314247848,1708119067303,-500.0,0.00049589,60]
[314247849,1708119067312,-500.0,0.00049589,60]
[314247850,1708119067322,-500.0,0.00049589,60]
[314247851,1708119067332,-500.0,0.00049589,60]
[314247852,1708119067342,-500.0,0.00049589,60]
[314247853,1708119067352,-500.0,0.00049589,60]
[314247854,1708119067362,-500.0,0.00049589,60]
[314247855,1708119067371,-500.0,0.00049589,60]
[314247856,1708119067381,-500.0,0.00049589,60]
[314247857,1708119067391,-500.0,0.00049589,60]
[314247858,1708119067401,-500.0,0.00049589,60]
[314247859,1708119067411,-500.0,0.00049589,60]
[314247860,1708119067421,-514.61327216,0.00049589,60]
[314247861,1708119067432,-500.0,0.00049589,60]
[314247862,1708119067442,-582.96094417,0.00049589,60]
[314247863,1708119067452,-500.0,0.00049589,60]
[314247864,1708119067462,-402.79281569,0.00049589,60]
[314247865,1708119067472,-500.0,0.00049589,60]
[314247866,1708119067482,-500.0,0.00049589,60]
[314247867,1708119067492,-500.0,0.00049589,60]
[314247868,1708119067502,-538.53369559,0.00049589,60]
[314247869,1708119067512,-500.0,0.00049589,60]
[314247870,1708119067522,-500.0,0.00049589,60]
[314247871,1708119067531,-500.0,0.00049589,60]
[314247872,1708119067541,-500.0,0.00049589,60]
[314247873,1708119067552,-500.0,0.00049589,60]
[314247874,1708119067562,-500.0,0.00049589,60]
[314247875,1708119067571,-500.0,0.00049589,60]
[314247876,1708119067581,-500.0,0.00049589,60]
[314247877,1708119067591,-500.0,0.00049589,60]
[314247878,1708119067601,-500.0,0.00049589,60]
[314247879,1708119067611,-500.0,0.00049589,60]
[314247880,1708119067621,-500.0,0.00049589,60]
[314247881,1708119067631,-500.0,0.00049589,60]
[314247882,1708119067642,-500.0,0.00049589,60]
[314247883,1708119067652,-500.0,0.00049589,60]
[314247884,1708119067661,-500.0,0.00049589,60]
[314247885,1708119067671,-664.54,0.00049589,30]
[314247886,1708119067681,-500.0,0.00049589,60]
[314247887,1708119067691,-562.77487058,0.00049589,60]
[314247888,1708119067701,-561.7397403,0.00049589,60]
[314247889,1708119067711,-500.0,0.00049589,60]
[314247890,1708119067722,-500.0,0.00049589,60]
[314247891,1708119067732,-500.0,0.00049589,60]
[314247892,1708119067742,-500.0,0.00049589,60]
[314247893,1708119067751,-500.0,0.00049589,60]
[314247894,1708119067761,-500.0,0.00049589,60]
[314247895,1708119067771,-500.0,0.00049589,60]
[314247896,1708119067780,-568.05,0.00049589,2]
[314247897,1708119067790,-500.0,0.00049589,60]
[314247898,1708119067799,-500.0,0.00049589,60]
[314247899,1708119067809,-500.0,0.00049589,60]
[314247900,1708119067818,-500.0,0.00049589,60]
[314247901,1708119067828,-500.0,0.00049589,60]
[314247902,1708119067838,-500.0,0.00049589,60]
[314247903,1708119067847,-508.67736857,0.00049589,60]
[314247904,1708119067858,-500.0,0.00049589,60]
[314247905,1708119067868,-500.0,0.00049589,60]
[314247906,1708119067878,-500.0,0.00049589,60]
[314247907,1708119067887,-500.0,0.00049589,60]
[314247908,1708119067898,-500.0,0.00049589,60]
[314247909,1708119067908,-500.0,0.00049589,60]
[314247910,1708119067920,-500.0,0.00049589,60]
[314247911,1708119067929,-500.0,0.00049589,60]
[314247912,1708119067940,-607.57133651,0.00049589,60]
[314247913,1708119067951,-500.0,0.00049589,60]
[314247914,1708119067961,-524.03875703,0.00049589,60]
[314247915,1708119067971,-500.0,0.00049589,60]
[314247916,1708119067981,-529.23802555,0.00049589,60]
[314247917,1708119067993,-500.0,0.00049589,60]
[314247918,1708119068003,-500.0,0.00049589,60]
[314247919,1708119068014,-500.0,0.00049589,60]
[314247920,1708119068024,-500.0,0.00049589,60]
[314247921,1708119068034,-500.0,0.00049589,60]
[314247922,1708119068044,-500.0,0.00049589,60]
[314247923,1708119068054,-560.51962399,0.00049589,60]
[314247924,1708119068064,-500.0,0.00049589,60]
[314247925,1708119068074,-500.0,0.00049589,60]
[314247926,1708119068084,-500.0,0.00049589,60]
[314247927,1708119068094,-500.0,0.00049589,60]
[314247928,1708119068103,-500.0,0.00049589,60]
[314247929,1708119068113,-500.0,0.00049589,60]
[314247930,1708119068123,-500.0,0.00049589,60]
[314247931,1708119068133,-500.0,0.00049589,60]
[314247932,1708119068142,-500.0,0.00049589,60]
[314247933,1708119068151,-500.0,0.00049589,60]
[314247934,1708119068161,-500.0,0.00049589,60]
[314247935,1708119068171,-500.0,0.00049589,60]
[314247936,1708119068182,-262.36507941,0.00049589,60]
[314247937,1708119068192,-500.0,0.00049589,60]
[314247938,1708119068201,-500.0,0.00049589,60]
[314247939,1708119068211,-500.0,0.00049589,60]
[314247940,1708119068221,-500.0,0.00049589,60]
[314247941,1708119068231,-520.36533212,0.00049589,60]
[314247942,1708119068241,-500.0,0.00049589,60]
[314247943,1708119068251,-445.0,0.00049589,60]
[314247944,1708119068261,-500.0,0.00049589,60]
[314247945,1708119068271,-500.0,0.00049589,60]
[314247946,1708119068280,-500.0,0.00049589,60]
[314247947,1708119068290,-500.0,0.00049589,60]
[314247948,1708119068300,-500.0,0.00049589,60]
[314247949,1708119068310,-517.16143446,0.00049589,60]
[314247950,1708119068319,-511.51671473,0.00049589,60]
[314247951,1708119068329,-500.0,0.00049589,60]
[314247952,1708119068338,-500.0,0.00049589,60]
[314247953,1708119068348,-500.0,0.00049589,60]
[314247954,1708119068358,-500.0,0.00049589,60]
[314247955,1708119068368,-500.0,0.00049589,7]
[314247956,1708119068378,-500.0,0.00049589,60]
[314247957,1708119068388,-500.0,0.00049589,60]
[314247958,1708119068398,-500.0,0.00049589,60]
[314247959,1708119068408,-500.0,0.00049589,60]
[314247960,1708119068418,-500.0,0.00049589,60]
[314247961,1708119068428,-500.0,0.00049589,60]
[314247962,1708119068439,-500.0,0.00049589,60]
[314247963,1708119068449,-512.51159234,0.00049589,60]
[314247964,1708119068459,-631.37,0.00049589,60]
[314247965,1708119068468,-500.0,0.00049589,60]
[314247966,1708119068478,-500.0,0.00049589,60]
[314247967,1708119068490,-250.93064306,0.00049589,60]
[314247968,1708119068501,-500.0,0.00049589,60]
[314247969,1708119068513,-500.0,0.00049589,60]
[314247970,1708119068522,-500.0,0.00049589,60]
[314247971,1708119068533,-500.0,0.00049589,60]
[314247972,1708119068543,-500.0,0.00049589,60]
[314247973,1708119068554,-500.0,0.00049589,60]
[314247974,1708119068564,-500.0,0.00049589,60]
[314247975,1708119068574,-500.0,0.00049589,60]
[314247976,1708119068584,-500.0,0.00049589,60]
[314247977,1708119068593,-500.0,0.00049589,60]
[314247978,1708119068603,-500.0,0.00049589,60]
[314247979,1708119068613,-500.0,0.00049589,60]
[314247980,1708119068623,-638.69972112,0.00049589,60]
[314247981,1708119068632,-500.0,0.00049589,60]
[314247982,1708119068642,-500.0,0.00049589,60]
[314247983,1708119068651,-500.0,0.00049589,60]
[314247984,1708119068661,-500.0,0.00049589,60]
[314247985,1708119068671,-500.0,0.00049589,60]
[314247986,1708119068681,-500.0,0.00049589,60]
[314247987,1708119068691,-500.0,0.00049589,60]
[314247988,1708119068701,-500.0,0.00049589,60]
[314247989,1708119068711,-500.0,0.00049589,60]
[314247990,1708119068721,-500.0,0.00049589,60]
[314247991,1708119068730,-274.37836583,0.00049589,60]
[314247992,1708119068740,-500.0,0.00049589,60]
[314247993,1708119068749,-500.0,0.00049589,60]
[314247994,1708119068759,-500.0,0.00049589,60]
[314247995,1708119068769,-500.0,0.00049589,60]
[314247996,1708119068779,-500.0,0.00049589,60]
[314247997,1708119068789,-500.0,0.00049589,60]
[314247998,1708119068800,-500.0,0.00049589,60]
[314247999,1708119068809,-500.0,0.00049589,60]
[314248000,1708119068819,-500.0,0.00049589,60]
[314248001,1708119068832,-501.30409575,0.00049589,60]
[314248002,1708119068842,-500.0,0.00049589,60]
[314248003,1708119068854,-555.95466559,0.00049589,60]
[314248004,1708119068865,-566.64365005,0.00049589,60]
[314248005,1708119068875,-500.0,0.00049589,60]
[314248006,1708119068885,-500.0,0.00049589,60]
[314248007,1708119068895,-500.0,0.00049589,60]
[314248008,1708119068905,-500.0,0.00049589,60]
[314248009,1708119068918,-549.14,0.00049589,60]
[314248010,1708119068929,-500.0,0.00049589,60]
[314248011,1708119068939,-500.0,0.00049589,60]
[314248012,1708119068949,-500.0,0.00049589,60]
[314248013,1708119068959,-500.0,0.00049589,60]
[314248014,1708119068969,-500.0,0.00049589,60]
[314248015,1708119068979,-500.0,0.00049589,60]
[314248016,1708119068989,-500.0,0.00049589,60]
[314248017,1708119068998,-500.0,0.00049589,60]
[314248018,1708119069008,-540.08076437,0.00049589,60]
[314248019,1708119069017,-500.0,0.00049589,60]
[314248020,1708119069027,-500.0,0.00049589,60]
[314248021,1708119069037,-433.94957374,0.00049589,60]
[314248022,1708119069047,-500.0,0.00049589,60]
[314248023,1708119069056,-500.0,0.00049589,60]
[314248024,1708119069067,-500.0,0.00049589,60]
[314248025,1708119069076,-500.0,0.00049589,60]
[314248026,1708119069086,-500.0,0.00049589,60]
[314248027,1708119069096,-500.0,0.00049589,60]
[314248028,1708119069106,-500.0,0.00049589,60]
[314248029,1708119069116,-500.0,0.00049589,60]
[314248030,1708119069319,-500.0,0.00049589,60]
[314248031,1708119069329,-953.91,0.00049589,60]
[314248032,1708119069339,-500.0,0.00049589,60]
[314248033,1708119069349,-500.0,0.00049589,60]
[314248034,1708119069358,-500.0,0.00049589,60]
[314248035,1708119069367,-713.03,0.00049589,60]
[314248036,1708119069376,-500.0,0.00049589,60]
[314248037,1708119069385,-500.0,0.00049589,60]
[314248038,1708119069395,-500.0,0.00049589,60]
[314248039,1708119069404,-150.0,0.00049589,60]
[314248040,1708119069414,-500.0,0.00049589,60]
[314248041,1708119069424,-639.89,0.00049589,60]
[314248042,1708119069435,-500.0,0.00049589,60]
[314248043,1708119069444,-500.0,0.00049589,60]
[314248044,1708119069455,-500.0,0.00049589,60]
[314248045,1708119069465,-500.0,0.00049589,60]
[314248046,1708119069474,-510.16,0.00049589,60]
[314248047,1708119069484,-500.0,0.00049589,60]
[314248048,1708119069493,-500.0,0.00049589,2]
[314248049,1708119069503,-500.0,0.00049589,60]
[314248050,1708119069512,-580.88,0.00049589,60]
[314248051,1708119069522,-500.0,0.00049589,60]
[314248052,1708119069532,-500.0,0.00049589,60]
[314248053,1708119069542,-500.0,0.00049589,60]
[314248054,1708119069552,-500.0,0.00049589,60]
[314248055,1708119069562,-500.0,0.00049589,60]
[314248056,1708119069572,-500.0,0.00049589,60]
[314248057,1708119069581,-1015.86806114,0.00049589,7]
[314248058,1708119069591,-500.0,0.00049589,60]
[314248059,1708119069600,-500.0,0.00049589,60]
[314248060,1708119069609,-500.0,0.00049589,60]
[314248061,1708119069618,-500.0,0.00049589,60]
[314248062,1708119069627,-555.94,0.00049589,60]
[314248063,1708119069637,-500.0,0.00049589,60]
[314248064,1708119069646,-572.13,0.00049589,60]
[314248065,1708119069656,-500.0,0.00049589,60]
[314248066,1708119069665,-500.0,0.00049589,60]
[314248067,1708119069675,-570.46,0.00049589,60]
[314248068,1708119069688,-500.0,0.00049589,60]
[314248069,1708119069698,-500.0,0.00049589,60]
[314248070,1708119069707,-500.0,0.00049589,60]
[314248071,1708119069716,-551.75,0.00049589,60]
[314248072,1708119069725,-500.0,0.00049589,60]
[314248073,1708119069734,-500.0,0.00049589,60]
[314248074,1708119069745,-500.0,0.00049589,60]
[314248075,1708119069754,-500.0,0.00049589,60]
[314248076,1708119069764,-500.0,0.00049589,60]
[314248077,1708119069773,-500.0,0.00049589,60]
[314248078,1708119069782,-500.0,0.00049589,60]
[314248079,1708119069791,-500.0,0.00049589,60]
[314248080,1708119069800,-563.95879387,0.00049589,60]
[314248081,1708119069810,-616.49,0.00049589,60]
[314248082,1708119069819,-500.0,0.00049589,60]
[314248083,1708119069827,-500.0,0.00049589,60]
[314248084,1708119069836,-500.0,0.00049589,60]
[314248085,1708119069846,-500.0,0.00049589,60]
[314248086,1708119069854,-500.0,0.00049589,60]
[314248087,1708119069863,-500.0,0.00049589,60]
[314248088,1708119069873,-569.39,0.00049589,60]
[314248089,1708119069882,-500.0,0.00049589,60]
[314248090,1708119069891,-500.0,0.00049589,60]
[314248091,1708119069902,-500.0,0.00049589,60]
[314248092,1708119069911,-502.66579201,0.00049589,10]
[314248093,1708119069920,-500.0,0.00049589,60]
[314248094,1708119069932,-614.71,0.00049589,60]
[314248095,1708119069942,-500.0,0.00049589,60]
[314248096,1708119069952,-500.0,0.00049589,60]
[314248097,1708119069961,-500.0,0.00049589,60]
[314248098,1708119069971,-500.0,0.00049589,60]
[314248099,1708119069979,-2236.49,0.00049589,60]
[314248100,1708119069989,-500.0,0.00049589,60]
[314248101,1708119069999,-869.27,0.00049589,60]
[314248102,1708119070008,-500.0,0.00049589,60]
[314248103,1708119070017,-679.72,0.00049589,60]
[314248104,1708119070026,-500.0,0.00049589,60]
[314248105,1708119070036,-525.08076331,0.00049589,60]
[314248106,1708119070045,-500.0,0.00049589,60]
[314248107,1708119070055,-500.0,0.00049589,60]
[314248108,1708119070065,-500.0,0.00049589,60]
[314248109,1708119070075,-514.97,0.00049589,60]
[314248110,1708119070084,-745.29,0.00049589,60]
[314248111,1708119070094,-500.0,0.00049589,60]
[314248112,1708119070103,-500.0,0.00049589,60]
[314248113,1708119070112,-516.12605278,0.00049589,60]
[314248114,1708119070122,-535.7002508,0.00049589,60]
[314248115,1708119070131,-597.04,0.00049589,60]
[314248116,1708119070140,-500.0,0.00049589,60]
[314248117,1708119070149,-500.0,0.00049589,60]
[314248118,1708119070159,-647.43,0.00049589,60]
[314248119,1708119070168,-500.0,0.00049589,60]
[314248120,1708119070177,-541.75,0.00049589,60]
[314248121,1708119070188,-585.97314498,0.00049589,60]
[314248122,1708119070198,-500.0,0.00049589,60]
[314248123,1708119070207,-500.0,0.00049589,60]
[314248124,1708119070217,-500.0,0.00049589,60]
[314248125,1708119070227,-500.0,0.00049589,60]
[314248126,1708119070236,-1088.61,0.00049589,2]
[314248127,1708119070247,-500.0,0.00049589,60]
[314248128,1708119070257,-608.03751442,0.00049589,60]
[314248129,1708119070266,-500.0,0.00049589,60]
[314248130,1708119070278,-355.17540234,0.00049589,60]
[314248131,1708119070288,-500.0,0.00049589,60]
[314248132,1708119070298,-500.0,0.00049589,60]
[314248133,1708119070307,-500.0,0.00049589,60]
[314248134,1708119070316,-500.0,0.00049589,60]
[314248135,1708119070325,-500.0,0.00049589,60]
[314248136,1708119070334,-500.0,0.00049589,60]
[314248137,1708119070343,-568.01,0.00049589,60]
[314248138,1708119070352,-500.0,0.00049589,60]
[314248139,1708119070362,-500.0,0.00049589,60]
[314248140,1708119070371,-581.86,0.00049589,60]
[314248141,1708119070381,-500.0,0.00049589,60]
[314248142,1708119070390,-500.0,0.00049589,60]
[314248143,1708119070399,-500.0,0.00049589,60]
[314248144,1708119070409,-500.0,0.00049589,60]
[314248145,1708119070418,-792.04,0.00049589,60]
[314248146,1708119070427,-500.0,0.00049589,60]
[314248147,1708119070438,-500.0,0.00049589,60]
[314248148,1708119070447,-500.0,0.00049589,60]
[314248149,1708119070457,-500.0,0.00049589,60]
[314248150,1708119070466,-500.0,0.00049589,60]
[314248151,1708119070476,-500.0,0.00049589,60]
[314248152,1708119070485,-500.0,0.00049589,60]
[314248153,1708119070494,-500.0,0.00049589,60]
[314248154,1708119070503,-500.0,0.00049589,60]
[314248155,1708119070512,-549.22186445,0.00049589,60]
[314248156,1708119070522,-500.0,0.00049589,60]
[314248157,1708119070531,-500.0,0.00049589,60]
[314248158,1708119070540,-500.0,0.00049589,7]
[314248159,1708119070550,-574.86,0.00049589,60]
[314248160,1708119070560,-500.0,0.00049589,60]
[314248161,1708119070569,-500.0,0.00049589,60]
[314248162,1708119070579,-500.0,0.00049589,60]
[314248163,1708119070588,-500.0,0.00049589,60]
[314248164,1708119070597,-500.0,0.00049589,60]
[314248165,1708119070606,-500.0,0.00049589,60]
[314248166,1708119070616,-724.01,0.00049589,60]
[314248167,1708119070626,-500.0,0.00049589,30]
[314248168,1708119070635,-625.17387357,0.00049589,60]
[314248169,1708119070645,-566.25683249,0.00049589,60]
[314248170,1708119070654,-500.0,0.00049589,60]
[314248171,1708119070665,-500.0,0.00049589,60]
[314248172,1708119070675,-500.0,0.00049589,60]
[314248173,1708119070687,-500.0,0.00049589,60]
[314248174,1708119070696,-500.0,0.00049589,60]
[314248175,1708119070705,-500.0,0.00049589,60]
[314248176,1708119070715,-500.0,0.00049589,60]
[314248177,1708119070724,-500.0,0.00049589,60]
[314248178,1708119070734,-574.15,0.00049589,60]
[314248179,1708119070743,-500.0,0.00049589,60]
[314248180,1708119070752,-500.0,0.00049589,60]
[314248181,1708119070762,-1173.51,0.00049589,7]
[314248182,1708119070771,-500.0,0.00049589,60]
[314248183,1708119070781,-604.06,0.00049589,60]
[314248184,1708119070791,-617.63,0.00049589,60]
[314248185,1708119070800,-500.0,0.00049589,60]
[314248186,1708119070810,-515.7918218,0.00049589,60]
[314248187,1708119070819,-500.0,0.00049589,60]
[314248188,1708119070829,-500.0,0.00049589,60]
[314248189,1708119070838,-500.0,0.00049589,60]
[314248190,1708119070847,-500.0,0.00049589,60]
[314248191,1708119070857,-500.0,0.00049589,60]
[314248192,1708119070866,-500.0,0.00049589,60]
[314248193,1708119070875,-500.0,0.00049589,60]
[314248194,1708119070884,-500.0,0.00049589,60]
[314248195,1708119070893,-500.0,0.00049589,60]
[314248196,1708119070906,-500.0,0.00049589,60]
[314248197,1708119070918,-840.32,0.00049589,2]
[314248198,1708119070927,-511.02,0.00049589,60]
[314248199,1708119070937,-500.0,0.00049589,60]
[314248200,1708119070946,-501.94409166,0.00049589,60]
[314248201,1708119070957,-500.0,0.00049589,60]
[314248202,1708119070966,-551.0,0.00049589,60]